[Event "2nd Late Dr Abul K C Chess-ch A 2022"]
[Site "Dhaka"]
[Date "2022.07.08"]
[Round "8.3"]
[White "Zia, Tahsin Tajwar"]
[Black "Rahman, Syed Mahfuzur"]
[Result "1-0"]
[ECO "D00"]
[WhiteElo "2307"]
[BlackElo "2122"]
[Annotator "RC"]
[PlyCount "69"]
[EventDate "2022.07.03"]
[EventCountry "BAN"]
[SourceTitle "playchess.com"]
[Source "ChessBase"]
[SourceQuality "1"]
[TimeControl "5400+30"]

1. d4 {[%emt 0:00:04]} Nf6 {[%emt 0:00:17]} 2. Bg5 {[%emt 0:00:08]} d5 {[%emt 0:01:10]} 3. e3 {[%emt 0:00:06]} e6 {[%emt 0:04:21]} 4. Nd2 {[%emt 0:00:12]} Be7 {[%emt 0:00:16]} 5. Bd3 {[%emt 0:00:09]} Nbd7 {[%emt 0:00:37]} 6. c3 {[%emt 0:00:16]} b6 {[%emt 0:01:04]} 7. f4 {[%emt 0:06:11]} Bb7 {[%emt 0:00:44]} 8. Qf3 {[%emt 0:00:41]} c5 {[%emt 0:04:09]} 9. Ne2 {[%emt 0:00:38]} Qc7 {[%emt 0:09:22]} 10. a4 {[%emt 0:00:47]} h6 {[%emt 0:03:02]} 11. Bxf6 {[%emt 0:03:27]} Nxf6 {[%emt 1:10:58]} 12. g4 {[%emt 0:00:46]} g5 {[%emt 0:00:00]} 13. Bb5+ {[%emt 0:11:29]} Kd8 {[%emt 0:00:00]} 14. h4 {[%emt 0:07:12]} gxh4 {[%emt 0:00:00]} 15. Rxh4 {[%emt 0:02:31]} c4 {[%emt 0:00:00]} 16. a5 {[%emt 0:10:44]} a6 {[%emt 0:00:00]} 17. Ba4 {[%emt 0:00:18]} b5 {[%emt 0:00:00]} 18. Bc2 {[%emt 0:00:07]} Kd7 {[%emt 0:00:00]} 19. Qh3 {[%emt 0:00:39]} Ne4 {[%emt 0:00:00]} 20. Rh5 {[%emt 0:01:23]} Nf6 {[%emt 0:00:00]} 21. Rh4 {[%emt 0:02:44]} Ne4 {[%emt 0:00:00]} 22. g5 {[%emt 0:00:05]} Nxd2 {[%emt 0:00:00]} 23. Kxd2 {[%emt 0:00:06]} b4 {[%emt 0:00:00]} 24. Rxh6 {[%emt 0:01:29]} Rxh6 {[%emt 0:00:00]} 25. Qxh6 {[%emt 0:00:06]} b3 {[%emt 0:00:00]} 26. Bh7 {[%emt 0:00:18]} Qd8 {[%emt 0:00:00]} 27. Ng1 {[%emt 0:02:30]} Qf8 {[%emt 0:00:43]} 28. Qh5 {[%emt 0:00:02]} Qg7 {[%emt 0:00:38]} 29. Nf3 {[%emt 0:00:12]} Bd6 {[%emt 0:04:05]} 30. Rh1 {[%emt 0:02:05]} Bc7 {[%emt 0:02:29]} 31. Bb1 {[%emt 0:01:48]} Bxa5 {[%emt 0:00:30]} 32. Ne5+ {[%emt 0:00:20]} Ke7 {[%emt 0:00:04]} 33. Nxf7 {[%emt 0:03:49]} Bc7 {[%emt 0:00:39]} 34. g6 {[%emt 0:01:06]} Rg8 {[%emt 0:01:47]} 35. Qg5+ {[%emt 0:43:32]} 1-0

[Event "2nd Late Dr Abul K C Chess-ch A 2022"]
[Site "Dhaka"]
[Date "2022.07.08"]
[Round "8.4"]
[White "Manon, Reja Neer"]
[Black "abu, Hanif"]
[Result "1-0"]
[ECO "C10"]
[WhiteElo "2089"]
[BlackElo "2024"]
[Annotator "RC"]
[PlyCount "162"]
[EventDate "2022.07.03"]
[EventCountry "BAN"]
[SourceTitle "playchess.com"]
[Source "ChessBase"]
[SourceQuality "1"]
[TimeControl "5400+30"]

1. e4 {[%emt 0:00:02]} e6 {[%emt 0:36:03]} 2. d4 {[%emt 0:00:07]} d5 {[%emt 0:03:01]} 3. Nd2 {[%emt 0:00:08]} dxe4 {[%emt 0:00:51]} 4. Nxe4 {[%emt 0:00:10]} Nd7 {[%emt 0:02:03]} 5. Nf3 {[%emt 0:00:16]} Ngf6 {[%emt 0:00:08]} 6. Bd3 {[%emt 0:00:50]} Be7 {[%emt 0:05:13]} 7. O-O {[%emt 0:01:45]} O-O {[%emt 0:02:17]} 8. Ne5 {[%emt 0:04:57]} c5 {[%emt 0:12:13]} 9. Nxd7 {[%emt 0:01:26]} Nxd7 {[%emt 0:00:32]} 10. Nxc5 {[%emt 0:01:08]} Nxc5 {[%emt 0:00:13]} 11. dxc5 {[%emt 0:00:02]} Bxc5 {[%emt 0:00:10]} 12. Bxh7+ {[%emt 0:00:07]} Kxh7 {[%emt 0:00:12]} 13. Qh5+ {[%emt 0:00:04]} Kg8 {[%emt 0:00:28]} 14. Qxc5 {[%emt 0:00:02]} b6 {[%emt 0:00:29]} 15. Qg5 {[%emt 0:19:45]} Bb7 {[%emt 0:02:24]} 16. Be3 {[%emt 0:05:17]} Qxg5 {[%emt 0:00:17]} 17. Bxg5 {[%emt 0:00:02]} f6 {[%emt 0:00:06]} 18. Be3 {[%emt 0:00:08]} Rac8 {[%emt 0:00:33]} 19. c3 {[%emt 0:00:36]} Rfd8 {[%emt 0:00:13]} 20. Rfd1 {[%emt 0:04:35]} Kf7 {[%emt 0:03:08]} 21. f3 {[%emt 0:01:04]} e5 {[%emt 0:00:20]} 22. Kf2 {[%emt 0:01:50]} Ke6 {[%emt 0:00:09]} 23. Rxd8 {[%emt 0:04:16]} Rxd8 {[%emt 0:00:03]} 24. c4 {[%emt 0:01:17]} f5 {[%emt 0:00:08]} 25. g3 {[%emt 0:01:31]} Rh8 {[%emt 0:02:22]} 26. h4 {[%emt 0:00:57]} f4 {[%emt 0:00:39]} 27. gxf4 {[%emt 0:01:10]} Rxh4 {[%emt 0:01:56]} 28. Kg3 {[%emt 0:02:18]} Rh8 {[%emt 0:00:28]} 29. Re1 {[%emt 0:08:20]} exf4+ {[%emt 0:03:20]} 30. Bxf4+ {[%emt 0:00:06]} Kd7 {[%emt 0:00:34]} 31. Be5 {[%emt 0:01:54]} Rh6 {[%emt 0:03:28]} 32. Bc3 {[%emt 0:16:24]} Rg6+ {[%emt 0:00:14]} 33. Kf2 {[%emt 0:00:02]} Rg5 {[%emt 0:00:55]} 34. Rh1 {[%emt 0:03:09]} Rf5 {[%emt 0:03:27]} 35. Rh3 {[%emt 0:00:06]} g5 {[%emt 0:02:45]} 36. Ke3 {[%emt 0:00:33]} Rf7 {[%emt 0:00:08]} 37. Bd2 {[%emt 0:01:53]} Ke6 {[%emt 0:02:04]} 38. Ke2 {[%emt 0:01:00]} Rg7 {[%emt 0:01:21]} 39. Rh6+ {[%emt 0:05:17]} Kd7 {[%emt 0:00:14]} 40. Bc3 {[%emt 0:00:59]} Re7+ {[%emt 0:03:28]} 41. Kf2 {[%emt 0:00:27]} Re6 {[%emt 0:02:32]} 42. Bf6 {[%emt 0:02:16]} Rc6 {[%emt 0:00:20]} 43. Rh7+ {[%emt 0:05:31]} Kc8 {[%emt 0:00:16]} 44. Bxg5 {[%emt 0:00:55]} Rxc4 {[%emt 0:00:03]} 45. Ke3 {[%emt 0:01:11]} Rc5 {[%emt 0:00:11]} 46. f4 {[%emt 0:00:29]} a5 {[%emt 0:01:03]} 47. Bf6 {[%emt 0:00:33]} b5 {[%emt 0:01:17]} 48. Bd4 {[%emt 0:00:42]} Rd5 {[%emt 0:00:42]} 49. Be5 {[%emt 0:00:17]} Rc5 {[%emt 0:00:10]} 50. Re7 {[%emt 0:00:58]} Rc4 {[%emt 0:02:57]} 51. f5 {[%emt 0:01:16]} Re4+ {[%emt 0:00:52]} 52. Kd3 {[%emt 0:00:08]} Bd5 {[%emt 0:00:45]} 53. Rc7+ {[%emt 0:01:30]} Kd8 {[%emt 0:00:19]} 54. Rc5 {[%emt 0:00:57]} Rxe5 {[%emt 0:02:02]} 55. Kd4 {[%emt 0:00:01]} Re4+ {[%emt 0:00:32]} 56. Kxd5 {[%emt 0:00:02]} Rb4 {[%emt 0:00:06]} 57. Rc2 {[%emt 0:01:14]} Ra4 {[%emt 0:00:06]} 58. f6 {[%emt 0:01:55]} Ke8 {[%emt 0:00:18]} 59. Ke6 {[%emt 0:00:29]} Re4+ {[%emt 0:00:02]} 60. Kf5 {[%emt 0:00:02]} Rb4 {[%emt 0:00:49]} 61. Rc8+ {[%emt 0:00:41]} Kf7 {[%emt 0:00:07]} 62. Rc7+ {[%emt 0:00:11]} Kf8 {[%emt 0:00:32]} 63. Rc2 {[%emt 0:00:48]} Kf7 {[%emt 0:00:09]} 64. Ke5 {[%emt 0:00:52]} Kf8 {[%emt 0:00:15]} 65. Kd5 {[%emt 0:01:32]} Kf7 {[%emt 0:02:27]} 66. a3 {[%emt 0:00:16]} Rb3 {[%emt 0:01:07]} 67. Rf2 {[%emt 0:00:16]} Rh3 {[%emt 0:00:15]} 68. Kc5 {[%emt 0:02:40]} Rh5+ {[%emt 0:00:08]} 69. Kb6 {[%emt 0:00:09]} a4 {[%emt 0:01:26]} 70. Rc2 {[%emt 0:00:29]} Re5 {[%emt 0:03:10]} 71. Rc5 {[%emt 0:00:19]} Re6+ {[%emt 0:00:07]} 72. Ka5 {[%emt 0:00:40]} Kxf6 {[%emt 0:01:36]} 73. Rxb5 {[%emt 0:00:08]} Re4 {[%emt 0:00:21]} 74. Rb4 {[%emt 0:00:05]} Re2 {[%emt 0:01:00]} 75. Kxa4 {[%emt 0:00:05]} Ke5 {[%emt 0:00:02]} 76. Rb8 {[%emt 0:00:26]} Kd6 {[%emt 0:00:02]} 77. b4 {[%emt 0:00:53]} Re3 {[%emt 0:00:04]} 78. Rc8 {[%emt 0:01:05]} Kd7 {[%emt 0:00:23]} 79. Rc1 {[%emt 0:00:07]} Kd6 {[%emt 0:00:07]} 80. b5 {[%emt 0:00:14]} Re8 {[%emt 0:01:02]} 81. Kb4 {[%emt 0:00:22]} Kd5 {[%emt 0:02:11]} 1-0

[Event "2nd Late Dr Abul K C Chess-ch A 2022"]
[Site "Dhaka"]
[Date "2022.07.08"]
[Round "8.6"]
[White "Shawket Bin, Osman Shaon"]
[Black "Khan, Nazrana"]
[Result "1/2-1/2"]
[ECO "D35"]
[WhiteElo "2053"]
[BlackElo "1829"]
[Annotator "RC"]
[PlyCount "23"]
[EventDate "2022.07.03"]
[EventCountry "BAN"]
[SourceTitle "playchess.com"]
[Source "ChessBase"]
[SourceQuality "1"]
[TimeControl "5400+30"]

1. d4 {[%emt 0:00:05]} d5 {[%emt 0:01:20]} 2. c4 {[%emt 1:31:25]} e6 3. Nc3 Nf6 4. cxd5 exd5 5. Bg5 Be7 6. e3 c6 7. Bd3 Ne4 8. Bxe7 Qxe7 9. Nge2 Nxc3 10. bxc3 Nd7 11. O-O Nf6 12. Qc2 {[%emt 0:00:00]} 1/2-1/2